bitfinex-derivatives/quotes_SOLF0:USTF0_20250528
["timestamp","ask_amount","ask_price","bid_price","bid_amount"]
[1748429497598,5.7384,174.2,174.17,5.77795393]
[1748429498800,5.7387,174.19,174.17,5.77795393]
[1748429500302,5.7384,174.2,174.17,5.77795393]
[1748429503911,0.03888486,174.21,174.17,0.03885393]
[1748429504508,5.77698486,174.21,174.18,5.7389]
[1748429505711,5.77698486,174.21,174.17,0.03885393]
[1748429506405,5.77698486,174.21,174.18,5.7387]
[1748429506605,5.7383,174.2,174.18,5.7387]
[1748429509913,5.7383,174.2,174.17,5.77805393]
[1748429513718,5.7383,174.2,174.18,5.7389]
[1748429515423,5.77698486,174.21,174.18,5.7389]
[1748429516720,5.77698486,174.21,174.19,5.7386]
[1748429518623,5.77698486,174.21,174.17,0.03885393]
[1748429519225,5.77698486,174.21,174.18,5.7387]
[1748429520420,5.7385,174.2,174.18,5.7387]
[1748429520820,0.03888486,174.21,174.18,5.7387]
[1748429521023,5.77698486,174.21,174.18,5.7387]
[1748429522029,0.03888486,174.21,174.19,5.7386]
[1748429523031,5.77688486,174.21,174.18,5.7388]
[1748429523230,5.77688486,174.21,174.18,10.00695711]
[1748429526531,5.77688486,174.21,174.17,0.03885393]
[1748429526532,0.03888486,174.21,174.17,0.03885393]
[1748429526727,0.03888486,174.21,174.2,4.26815711]
[1748429526929,0.03888486,174.21,174.17,0.03885393]
[1748429527130,0.03888486,174.21,174.19,10.00655711]
[1748429528829,0.03888486,174.21,174.19,4.26815711]
[1748429529834,0.03888486,174.21,174.18,5.7387]
[1748429530034,0.03888486,174.21,174.17,5.77805393]
[1748429530228,0.03888486,174.21,174.18,4.26815711]
[1748429530437,0.03888486,174.21,174.17,4.30701104]
[1748429531534,5.77708486,174.21,174.18,5.7389]
[1748429532033,5.77708486,174.21,174.18,10.00705711]
[1748429535235,5.77708486,174.21,174.18,4.26815711]
[1748429535635,5.77708486,174.21,174.17,0.03885393]
[1748429535839,0.03888486,174.21,174.17,0.03885393]
[1748429536044,4.30704197,174.21,174.17,0.03885393]
[1748429536340,5.739,174.18,174.17,0.03885393]
[1748429553649,5.739,174.18,174.17,5.393e-05]
[1748429560063,10.00990452,174.18,174.17,5.393e-05]
[1748429563061,10.00990452,174.18,174.1,28.86]
[1748429563062,4.27090452,174.18,174.1,28.86]
[1748429563259,4.27090452,174.15,174.1,28.86]
[1748429563461,4.27090452,174.15,174.08,4.27090452]
[1748429563666,5.7411,174.12,174.09,5.7417]
[1748429563960,5.7411,174.12,174.09,5.77822173]
[1748429564165,5.78138292,174.12,174.09,5.77822173]
[1748429565162,5.7414,174.11,174.09,0.03652173]
[1748429565564,0.04028292,174.12,174.09,0.03652173]
[1748429565764,5.78128292,174.12,174.09,5.77832173]
[1748429566260,0.04028292,174.12,174.09,0.03652173]
[1748429566465,5.7414,174.11,174.09,0.03652173]
[1748429571472,5.7416,174.1,174.09,0.03652173]
[1748429575873,5.7414,174.11,174.09,0.03652173]
[1748429576074,0.04028292,174.12,174.09,0.03652173]
[1748429576468,5.7413,174.11,174.09,0.03652173]
[1748429576663,0.04028292,174.12,174.09,0.03652173]
[1748429577775,5.7416,174.1,174.09,0.03652173]
[1748429579875,0.04028292,174.12,174.09,0.03652173]
[1748429581070,5.7413,174.11,174.09,0.03652173]
[1748429584172,5.7416,174.1,174.09,0.03652173]
[1748429584370,5.7416,174.1,173.94,52.31454892]
[1748429584371,4.27090452,174.09,174.01,4.27090452]
[1748429584571,4.27090452,174.09,174.03,4.27090452]
[1748429584771,5.7421,174.09,174.05,5.7432]
[1748429584973,33.17090452,174.11,174.03,4.27090452]
[1748429585379,0.04148857,174.09,174.05,0.04057895]
[1748429585582,5.7423,174.08,174.05,0.04057895]
[1748429586285,5.7428,174.07,174.05,0.04057895]
[1748429586576,4.31239309,174.09,174.05,0.04057895]
[1748429587583,4.27090452,174.06,173.97,4.27090452]
[1748429587886,4.27090452,174.06,173.99,4.27090452]
[1748429588380,5.7436,174.04,174.0,34.6448]
[1748429588578,0.03780871,174.04,174.0,34.6864717]
[1748429588883,0.03780871,174.04,174.01,4.27090452]
[1748429589576,0.03780871,174.04,174.03,5.7439]
[1748429597581,4.27090452,174.11,174.07,5.7425]
[1748429598078,5.7418,174.1,174.07,5.7425]
[1748429598478,5.7418,174.1,174.07,0.03969928]
[1748429598479,4.27090452,174.09,174.07,0.03969928]
[1748429598676,4.27090452,174.08,173.98,4.27090452]
[1748429598880,4.27090452,174.06,173.99,28.7]
[1748429599079,5.7435,174.05,174.01,5.7444]
[1748429599586,5.78382019,174.05,174.01,5.78420599]
[1748429599885,5.7436,174.04,174.01,5.78420599]
[1748429603186,5.7436,174.04,174.02,5.7442]
[1748429603383,5.7436,174.04,174.03,28.7]
[1748429606193,0.04032019,174.05,174.03,34.4437]
[1748429611792,0.04032019,174.05,174.04,5.7436]
[1748429621989,4.31800836,174.05,173.96,28.7]
[1748429622295,4.27768817,174.02,173.97,28.7]
[1748429622497,4.27768817,174.02,173.98,5.7453]
[1748429622694,10.02208817,174.02,173.98,5.7453]
[1748429622993,10.05986667,174.02,173.98,0.03677507]
[1748429623296,5.7448,174.01,173.98,0.03677507]
[1748429623497,0.0377785,174.02,173.99,5.745]
[1748429623894,1.9276,174.1,174.01,10.95520651]
[1748429624087,3.8855,174.16,174.02,28.7]
[1748429624594,5.7407,174.13,174.04,6.67751834]
[1748429624896,0.04173542,174.1,174.07,0.04216516]
[1748429625092,0.04173542,174.1,174.08,28.7]
[1748429625998,0.04173542,174.1,174.09,5.7419]
[1748429626691,0.04173542,174.1,174.09,34.4419]
[1748429634092,0.04173542,174.1,174.09,5.7419]
[1748429634290,0.04173542,174.1,174.09,34.4419]
[1748429642108,0.04173542,174.1,174.09,5.7419]
[1748429642405,0.04173542,174.1,174.09,28.7]
[1748429643111,0.04173542,174.1,174.09,34.4419]
[1748429652113,0.04173542,174.1,174.09,5.7419]
[1748429652716,0.04173542,174.1,174.09,34.4419]
[1748429652916,0.04173542,174.1,174.09,5.7419]
[1748429653121,0.04173542,174.1,174.09,34.5019]
[1748429656016,5.78333542,174.1,174.09,28.76]
[1748429657117,5.78333542,174.1,174.08,5.7422]
[1748429657318,5.742,174.09,174.07,0.04216516]
[1748429657620,0.04173542,174.1,174.08,34.5022]
[1748429658125,0.04173542,174.1,174.08,28.76]
[1748429659627,0.04173542,174.1,174.08,34.5021]
[1748429660026,0.04173542,174.1,174.08,28.76]
[1748429660228,0.04173542,174.1,174.09,5.7419]
[1748429661330,5.78333542,174.1,174.08,34.5022]
[1748429662731,5.7419,174.09,174.08,28.76]
[1748429663038,0.04173542,174.1,174.08,28.76]
[1748429663236,5.78353542,174.1,174.09,28.76]
[1748429663635,5.78353542,174.1,174.07,5.78466516]
[1748429663935,5.78353542,174.1,174.08,28.76]
[1748429664533,5.78353542,174.1,174.08,34.5022]
[1748429664731,5.78353542,174.1,174.09,28.76]
[1748429664933,5.78353542,174.1,174.08,5.7422]
[1748429665131,5.78353542,174.1,174.09,28.76]
[1748429668241,0.04173542,174.1,174.09,28.76]
[1748429668940,0.04173542,174.1,174.08,5.7422]
[1748429669138,0.04173542,174.1,174.09,28.76]
[1748429669738,5.78333542,174.1,174.09,28.76]
[1748429671234,5.78333542,174.1,174.08,5.7422]
[1748429671534,5.78333542,174.1,174.09,28.76]
[1748429678344,5.7422,174.08,174.07,0.04216516]
[1748429678552,4.27349626,174.08,174.04,28.76]
[1748429678755,4.27349626,174.06,174.04,28.76]
[1748429679051,5.7432,174.05,174.04,28.76]
[1748429679649,4.27349626,174.06,174.04,28.76]
[1748429679650,4.31130804,174.06,174.04,28.76]
[1748429679847,10.05440804,174.06,174.04,28.76]
[1748429680149,5.78091178,174.06,174.04,28.76]
[1748429681246,5.7432,174.05,174.04,28.76]
[1748429681749,5.78081178,174.06,174.04,28.76]
[1748429682447,0.03781178,174.06,174.04,28.76]
[1748429683849,0.03781178,174.06,174.05,5.7432]
[1748429687147,0.03781178,174.06,174.04,34.5035]
[1748429690151,5.78081178,174.06,174.04,34.5035]
[1748429690352,5.78081178,174.06,174.04,28.76]
[1748429690543,0.03781178,174.06,174.04,28.76]
[1748429690742,5.7432,174.05,174.04,28.76]
[1748429691250,5.78081178,174.06,174.04,28.76]
[1748429696057,5.7432,174.05,174.04,28.76]
[1748429698251,5.7436,174.04,174.03,0.04094778]
[1748429698856,5.7434,174.05,174.03,0.04094778]
[1748429699453,5.78071178,174.06,174.03,0.04094778]
[1748429700051,0.03781178,174.06,174.03,5.78474778]
[1748429700247,0.03781178,174.06,174.03,0.04094778]
[1748429700462,6.6814145,174.04,173.88,8.3196145]
[1748429700653,147.02,174.03,173.7,31.36]
[1748429700955,6.69369498,173.98,173.88,5.7486]
[1748429701156,6.69369498,173.98,173.89,31.36]
[1748429701452,0.03971083,173.95,173.92,0.03690497]
[1748429701659,0.03999728,173.95,173.93,32.68]
[1748429701858,3.8678,174.09,173.94,2.48854434]
[1748429702058,6.69369498,174.03,173.95,531.28854434]
[1748429702253,6.69369498,174.0,173.96,35.16854434]
[1748429702454,6.69369498,174.0,173.87,496.12]
[1748429702656,5.7468,173.95,173.88,32.68]
[1748429703057,0.03901636,173.93,173.9,0.03721517]
[1748429703260,6.69369498,173.97,173.9,0.03721517]
[1748429703759,32.68,174.04,173.9,0.03721517]
[1748429703760,6.68801311,173.98,173.9,0.03721517]
[1748429703958,32.68,174.04,173.88,32.68]
[1748429704160,3.7471446,173.98,173.94,0.0392175]
[1748429704361,6.72498335,173.98,173.94,0.0392175]
[1748429704556,0.37610229,173.98,173.94,0.0392175]
[1748429704865,6.68801311,173.99,173.94,0.0392175]
[1748429705061,3.4266199,173.99,173.94,0.0392175]
[1748429705459,0.54690136,173.99,173.94,0.0392175]
[1748429705661,0.01204379,173.98,173.94,0.0392175]
[1748429705964,6.68801311,173.98,173.94,0.0392175]
[1748429706362,4.0648,174.03,173.94,0.0392175]
[1748429706662,2.57740203,173.95,173.94,0.0392175]
[1748429707166,6.68801311,173.98,173.94,0.0392175]
[1748429707758,2.87267519,173.95,173.94,0.0392175]
[1748429708165,0.03822244,173.96,173.94,0.0392175]
[1748429708365,6.68801311,173.98,173.94,0.0392175]
[1748429708767,5.7468,173.95,173.94,0.0392175]
[1748429709566,2.77883066,173.95,173.94,0.0392175]
[1748429709870,6.68801311,173.98,173.94,0.0392175]
[1748429710672,5.7468,173.95,173.94,0.0392175]
[1748429711064,2.87124547,173.95,173.94,0.0392175]
[1748429711863,6.68801311,174.01,173.94,0.0392175]
[1748429712572,4.0648,174.03,173.94,0.0392175]
[1748429712573,5.7468,173.95,173.94,0.0392175]
[1748429712970,2.87250981,173.95,173.94,0.0392175]
[1748429713376,6.68801311,173.95,173.86,3.936]
[1748429713574,6.68801311,173.92,173.86,1.9189]
[1748429714473,0.04204185,173.91,173.87,0.03988398]
[1748429715175,0.04204185,173.91,173.87,2.44915875]
[1748429716076,5.79004185,173.91,173.87,2.4477628]
[1748429716374,6.68801311,173.96,173.87,2.4477628]
[1748429716773,32.7,173.98,173.87,2.44714183]
[1748429716975,32.7,173.98,173.88,2.40725785]
[1748429717176,6.68801311,174.0,173.91,0.03937012]
[1748429717379,5.7458,173.98,173.93,5.7469]
[1748429717579,5.7458,173.98,173.94,0.04021532]
[1748429717981,5.7458,173.98,173.94,5.78681532]
[1748429718276,5.7458,173.98,173.94,0.04021532]
[1748429718482,5.746,173.97,173.94,0.04021532]
[1748429718675,5.746,173.97,173.94,2.44697764]
[1748429718878,5.746,173.97,173.94,0.04021532]
[1748429719279,5.7463,173.96,173.94,0.04021532]
[1748429719581,6.68801311,174.0,173.94,0.04021532]
[1748429721377,5.7465,173.95,173.94,0.04021532]
[1748429724574,5.7465,173.95,173.94,1.532e-05]
[1748429725076,5.7481,173.91,173.89,2.40822345]
[1748429725577,5.7472,173.93,173.89,2.40822345]
[1748429725976,5.78970266,173.93,173.89,2.44989309]
[1748429726578,5.748,173.91,173.89,2.44989309]
[1748429726885,0.04250266,173.93,173.89,2.45098798]
[1748429727183,5.7476,173.92,173.89,2.45098798]
[1748429727383,0.04250266,173.93,173.89,2.45098798]
[1748429727981,0.04250266,173.93,173.92,5.7475]
[1748429728177,5.7455,173.99,173.9,2.40931834]
[1748429728482,5.7455,173.99,173.95,5.7463]
[1748429728681,6.68801311,174.0,173.88,39.38801311]
[1748429728881,32.7,174.01,173.89,2.40879512]
[1748429729182,32.7,174.01,173.93,0.04088606]
[1748429729381,32.7,174.01,173.94,35.10862916]
[1748429729582,32.7,174.01,173.96,5.7461]
[1748429729778,32.7,174.01,173.97,0.04064137]
[1748429730083,5.7451,174.0,173.97,0.04064137]
[1748429730285,5.7451,174.0,173.97,2.44927053]
[1748429731083,5.7451,174.0,173.97,0.04064137]
[1748429731281,5.7451,174.0,173.97,8.19578007]
[1748429731586,5.7448,174.01,173.98,2.4093387]
[1748429731785,6.68801311,174.03,173.97,0.04064137]
[1748429732279,6.68801311,174.03,173.97,5.78644137]
[1748429732480,6.68801311,174.03,173.98,2.41022149]
[1748429732682,6.68801311,174.03,173.97,0.04064137]
[1748429733077,5.7449,174.01,173.97,5.78644137]
[1748429733280,6.68801311,174.03,173.97,5.78644137]
[1748429733483,6.68801311,174.03,173.98,2.41077793]
[1748429733783,5.7451,174.0,173.98,2.41077793]
[1748429734184,5.7451,174.0,173.97,0.04064137]
[1748429734783,5.7451,174.0,173.97,5.78624137]
[1748429734987,5.7446,174.01,173.98,2.41114325]
[1748429735194,6.68801311,174.03,173.97,0.04064137]
[1748429735589,6.68801311,174.03,173.97,2.45267379]
[1748429735785,6.68801311,174.03,173.97,0.04064137]
[1748429736091,6.68801311,174.03,173.97,5.78644137]
[1748429736282,6.68801311,174.03,173.98,2.41203242]
[1748429736590,6.68801311,174.03,173.97,0.04064137]
[1748429737079,5.7454,173.99,173.97,2.45327499]
[1748429737284,5.7454,173.99,173.98,2.41263362]
[1748429737589,5.7454,173.99,173.98,2.41332132]
[1748429737789,5.7454,173.99,173.98,2.41332121]
[1748429738179,5.7454,173.99,173.98,2.41331204]
[1748429740893,38.80801311,174.05,173.98,2.41331204]
[1748429741095,38.80801311,174.05,173.99,2.41331204]
[1748429741394,38.80801311,174.05,174.0,2.41331204]
[1748429741693,38.80801311,174.05,174.01,0.0375857]
[1748429742391,5.7442,174.02,174.01,2.45410746]
[1748429743095,5.7442,174.02,174.01,0.0375857]
[1748429743395,5.7442,174.02,174.01,2.45489886]
[1748429744091,5.7442,174.02,174.01,0.0375857]
[1748429744297,5.7442,174.02,174.01,2.45577953]
[1748429744498,5.7442,174.02,174.01,2.45681069]
[1748429745799,5.7442,174.02,174.01,2.45795353]
[1748429748196,5.7442,174.02,174.01,0.0375857]
[1748429748402,5.7442,174.02,174.01,2.45791334]
[1748429748703,5.7442,174.02,174.01,2.45785517]
[1748429749703,5.7442,174.02,174.01,2.45764395]
[1748429750102,5.7442,174.02,174.01,2.45764405]
[1748429750602,5.7442,174.02,174.01,2.45748432]
[1748429751305,5.7442,174.02,174.01,2.45746247]
[1748429752303,5.7442,174.02,174.01,2.45719781]
[1748429752904,5.7442,174.02,174.01,2.45719462]
[1748429757510,5.7442,174.02,174.01,2.46157139]
[1748429758312,5.7442,174.02,174.01,2.46161233]
[1748429759814,5.7442,174.02,174.01,2.46306508]
[1748429760113,5.7442,174.02,174.01,2.46306532]
[1748429761013,5.7442,174.02,174.01,2.46413299]
[1748429761514,5.7442,174.02,174.01,2.4650521]
[1748429762417,5.7442,174.02,174.01,0.0375857]
[1748429762612,5.7436,174.04,174.01,2.46523819]
[1748429762917,5.7436,174.04,174.02,2.42740837]
[1748429763119,5.7436,174.04,174.03,2.42740837]
[1748429763314,5.7435,174.05,174.03,2.42740837]
[1748429763510,5.7435,174.05,174.04,2.42709535]
[1748429763719,31.1,174.09,174.01,0.0375857]
[1748429764017,5.7439,174.04,174.02,2.43295429]
[1748429764218,31.1,174.09,174.02,2.43295429]
[1748429764422,31.1,174.09,174.03,2.43292579]
[1748429764920,31.1,174.09,174.04,2.43292579]
[1748429765116,31.1,174.09,174.05,2.4746802]
[1748429765416,6.68186917,174.07,174.05,4.172e-05]
[1748429765615,6.68186917,174.07,173.98,31.1]
[1748429766015,5.7452,173.99,173.98,31.1]
[1748429768218,5.78130162,174.0,173.98,31.1]
[1748429768420,0.03630162,174.0,173.98,31.1]
[1748429769814,0.03630162,174.0,173.98,36.8453]
[1748429770420,0.03630162,174.0,173.99,5.7452]
[1748429772230,5.78120162,174.0,173.98,36.8454]
[1748429772929,0.03630162,174.0,173.98,36.8454]
[1748429777228,0.03630162,174.0,173.99,2.3648751]
[1748429777727,0.03630162,174.0,173.99,8.1100751]
[1748429778229,0.03630162,174.0,173.99,8.11004805]
[1748429778626,0.03630162,174.0,173.99,5.7452]
[1748429778823,0.03630162,174.0,173.99,8.11005144]
[1748429780233,0.03630162,174.0,173.99,8.10987891]
[1748429780626,0.03630162,174.0,173.99,5.7452]
[1748429780829,0.03630162,174.0,173.99,8.10990151]
[1748429781435,0.03630162,174.0,173.99,8.10996554]
[1748429781935,0.03630162,174.0,173.99,8.10994123]
[1748429782940,0.03630162,174.0,173.99,5.7452]
[1748429783238,0.03630162,174.0,173.99,8.10999357]
[1748429784527,0.03630162,174.0,173.99,8.11010318]
[1748429785238,35.1422,174.1,174.03,5.7437]
[1748429785439,37.78186917,174.1,174.04,2.36490318]
[1748429785739,31.1,174.1,174.05,2.36490318]
[1748429786040,31.1,174.1,174.06,2.36393721]
[1748429786339,31.1,174.1,174.07,2.36393721]
[1748429786531,5.7419,174.09,174.08,2.36393721]
[1748429786931,5.7419,174.09,174.08,2.36306613]
[1748429789345,5.7426,174.07,174.06,0.04011919]
[1748429789545,5.7426,174.07,174.06,2.40137376]
[1748429789837,5.7426,174.07,174.06,0.04011919]
[1748429790039,5.7426,174.07,174.06,2.40073402]
[1748429790341,5.7426,174.07,174.06,2.40073472]
[1748429792039,5.7426,174.07,174.06,2.39968122]
[1748429792840,5.7426,174.07,174.06,2.39925124]
[1748429793545,5.7426,174.07,174.06,2.39891465]
[1748429793739,5.7426,174.07,174.06,2.39891377]
[1748429794742,5.7426,174.07,174.06,0.04011919]
[1748429794943,5.7426,174.07,174.06,2.39846849]
[1748429795539,5.7423,174.08,174.06,2.39846849]
[1748429795739,31.1,174.1,174.07,2.35803052]
[1748429795939,42.86056917,174.14,174.08,2.35803052]
[1748429796141,37.06186917,174.14,174.09,2.35792268]
[1748429796341,37.06186917,174.14,174.1,2.39493695]
[1748429796650,5.7409,174.12,174.11,2.35792268]
[1748429797449,5.7413,174.11,174.1,0.03701427]
[1748429797650,5.7413,174.11,174.1,2.39375075]
[1748429799150,5.7413,174.11,174.1,2.39336127]
[1748429799842,5.7413,174.11,174.1,2.39300905]
[1748429802439,5.7413,174.11,174.1,2.39630926]
[1748429803045,5.7413,174.11,174.1,2.39600169]
[1748429804351,5.7413,174.11,174.1,0.03701427]
[1748429804650,5.7413,174.11,174.1,2.39619945]
[1748429804840,5.7413,174.11,174.1,0.03701427]
[1748429805043,5.7413,174.11,174.1,2.39595757]
[1748429806147,5.7413,174.11,174.1,2.39581937]
[1748429807150,5.7413,174.11,174.1,0.03701427]
[1748429807453,5.7413,174.11,174.1,2.39588595]
[1748429808253,5.7413,174.11,174.1,2.39583037]
[1748429809947,5.7413,174.11,174.1,2.39570706]
[1748429811147,5.7413,174.11,174.1,7.06e-06]
[1748429811356,5.7434,174.05,174.03,4.0692]
[1748429812055,5.7436,174.04,174.01,4.27528006]
[1748429812255,5.7436,174.04,174.01,4.31851687]
[1748429812755,5.7436,174.04,174.01,5.78763681]
[1748429814159,5.7439,174.03,174.01,0.04323681]
[1748429815058,0.04194896,174.05,174.01,0.04323681]
[1748429815957,5.78534896,174.05,174.02,36.8442]
[1748429817663,0.04194896,174.05,174.03,5.7438]
[1748429818355,0.04194896,174.05,174.02,31.1]
[1748429819656,0.04194896,174.05,174.03,5.7437]
[1748429821454,0.04194896,174.05,174.03,5.7439]
[1748429822562,0.04194896,174.05,174.04,5.7436]
[1748429822956,37.04116064,174.14,174.02,31.1]
[1748429823160,5.7421,174.09,174.06,5.7427]
[1748429823460,5.7421,174.09,174.07,2.29908322]
[1748429823664,5.7421,174.09,174.08,2.29908322]
[1748429824161,5.7421,174.09,174.08,2.2993876]
[1748429824760,5.7421,174.09,174.08,2.29980933]
[1748429824960,5.7421,174.09,174.08,2.29975465]
[1748429825161,5.7421,174.09,174.07,5.78125941]
[1748429825362,5.7421,174.09,174.08,2.2997543]
[1748429825665,30.36,174.14,174.08,2.30019569]
[1748429825865,30.36,174.14,174.09,2.30019569]
[1748429826067,30.36,174.14,174.1,2.30019569]
[1748429826267,5.7409,174.12,174.11,2.30019569]
[1748429826670,30.36,174.14,174.11,2.30076272]
[1748429826865,30.36,174.14,174.12,2.30076237]
[1748429827071,30.36,174.14,174.13,2.30075604]
[1748429827267,36.1003,174.14,174.13,2.30075604]
[1748429827567,30.36,174.14,174.13,2.30125447]
[1748429827877,30.36,174.14,174.13,2.30111321]
[1748429828871,37.04116064,174.14,174.1,0.04179892]
[1748429829975,5.7413,174.11,174.1,0.04179892]
[1748429836079,10.0151966,174.11,174.1,0.04179892]
[1748429857092,17.24,174.23,174.1,0.04179892]
[1748429857093,57.3166,174.41,174.1,0.04179892]
[1748429857395,4.2738966,174.16,174.15,0.03879052]
[1748429857698,5.7399,174.15,174.14,0.04002437]
[1748429857898,10.0137966,174.15,174.14,0.04002437]
[1748429859292,5.7421,174.09,174.05,1.898]
[1748429859494,5.7421,174.09,174.06,29.34]
[1748429860397,5.77880629,174.09,174.06,29.37971571]
[1748429861900,5.7423,174.08,174.06,29.37971571]
[1748429862900,5.7425,174.07,174.06,0.03971571]
[1748429863108,10.0163966,174.07,174.06,0.03971571]
[1748429875306,5.7445,174.02,173.99,31.348]
[1748429875704,4.2738966,174.03,173.99,31.348]
[1748429876308,4.31537082,174.03,173.99,37.13680061]
[1748429876808,10.05937082,174.03,173.99,37.13680061]
[1748429877406,5.7442,174.02,173.99,37.13680061]
[1748429878510,0.04147422,174.03,174.0,5.7447]
[1748429879106,5.78537422,174.03,173.99,37.13680061]
[1748429880412,5.78537422,174.03,174.0,5.7448]
[1748429881816,5.7442,174.02,173.99,37.13690061]
[1748429884214,0.04147422,174.03,173.99,31.39180061]
[1748429885006,4.2738966,174.02,173.99,31.39180061]
[1748429885207,4.2738966,174.0,173.99,2.05180061]
[1748429885516,4.2738966,174.0,173.99,0.04380061]
[1748429885517,10.0186966,174.0,173.99,0.04380061]
[1748429889121,10.0184966,174.01,173.99,0.04380061]
[1748429889421,4.2738966,174.01,173.99,0.04380061]
[1748429889616,10.0185966,174.01,173.99,0.04380061]
[1748429890121,4.2738966,174.01,173.99,0.04380061]
[1748429890313,5.7448,174.0,173.99,0.04380061]
[1748429892920,10.0185966,174.01,173.99,0.04380061]
[1748429893721,5.7448,174.0,173.99,0.04380061]
[1748429899323,10.0186966,174.0,173.99,0.04380061]
[1748429899921,5.7448,174.0,173.99,0.04380061]
[1748429901824,29.18147422,174.03,173.99,0.04380061]
[1748429902213,0.04147422,174.03,173.99,0.04380061]
[1748429902417,5.7445,174.02,173.99,0.04380061]
[1748429902826,5.7448,174.01,173.99,0.04380061]
[1748429904030,5.7443,174.02,173.99,0.04380061]
[1748429904427,0.04147422,174.03,173.99,0.04380061]
[1748429904727,5.7447,174.01,173.99,0.04380061]
[1748429906322,5.7449,174.0,173.99,0.04380061]
[1748429947961,5.7447,174.01,173.99,0.04380061]
[1748429948262,5.7447,174.01,173.99,5.78900061]
[1748429949959,5.7447,174.01,173.99,0.04380061]
[1748429954567,5.7447,174.01,173.99,5.78900061]
[1748429954969,5.7443,174.02,173.99,0.04380061]
[1748429955164,5.7443,174.02,174.0,5.7448]
[1748429955371,5.7443,174.02,173.99,0.04380061]
[1748429956070,5.7446,174.01,173.99,5.78880061]
[1748429957168,5.7446,174.01,173.99,0.04380061]
[1748429958175,5.7449,174.0,173.99,0.04380061]
[1748429959775,5.7447,174.01,173.99,5.78900061]
[1748429960074,5.7447,174.01,173.99,0.04380061]
[1748429960478,5.7449,174.0,173.99,0.04380061]
[1748429961275,5.7447,174.01,173.99,0.04380061]
[1748429963280,5.7449,174.0,173.99,0.04380061]
[1748429969384,5.7447,174.01,173.99,0.04380061]
[1748429969590,5.7447,174.01,173.99,5.78900061]
[1748429974795,5.7449,174.0,173.99,0.04380061]
[1748429975596,5.7447,174.01,173.99,5.78900061]
[1748429976398,5.7449,174.0,173.99,0.04380061]
[1748429983410,5.7447,174.01,173.99,0.04380061]
[1748429984215,5.7447,174.01,173.99,5.78900061]
[1748429985317,5.7447,174.01,173.99,0.04380061]
[1748429985912,5.7449,174.0,173.99,0.04380061]
[1748429987017,5.7463,173.96,173.94,36.8441]
[1748429987210,4.27813242,174.0,173.94,29.1]
[1748429988214,0.04350009,173.99,173.95,0.04143699]
[1748429989108,5.746,173.97,173.95,0.04143699]
[1748429989714,5.7462,173.96,173.95,0.04143699]
[1748429990419,5.746,173.97,173.95,0.04143699]
[1748429991616,5.7462,173.96,173.95,0.04143699]
[1748429994617,5.746,173.97,173.95,0.04143699]
[1748429996219,4.27813242,173.98,173.95,0.04143699]
[1748429997109,5.7461,173.97,173.95,0.04143699]
[1748429997313,0.04350009,173.99,173.95,0.04143699]
[1748429997922,5.7458,173.98,173.95,5.78793699]
[1748429998120,0.04350009,173.99,173.95,5.78793699]
[1748429998628,5.7456,173.98,173.95,5.78793699]
[1748429998811,0.04350009,173.99,173.95,5.78793699]
[1748429999625,5.7456,173.98,173.95,5.78793699]
[1748429999827,0.04350009,173.99,173.96,5.7462]
[1748430000326,0.04350009,173.99,173.95,5.78783699]
[1748430000524,0.04350009,173.99,173.95,0.04143699]
[1748430000720,0.04350009,173.99,173.97,4.27813242]
[1748430001222,0.04350009,173.99,173.98,5.7455]
[1748430002428,5.7442,174.03,173.99,5.7449]
[1748430002926,5.7445,174.02,173.99,5.7449]
[1748430003431,5.78095667,174.02,173.99,5.78666009]
[1748430004529,5.7447,174.01,173.99,0.04176009]
[1748430006528,5.7449,174.0,173.99,0.04176009]
[1748430006723,0.03645667,174.02,173.99,0.04176009]
[1748430007035,5.7449,174.0,173.99,0.04176009]
[1748430014236,5.747,173.94,173.92,29.06]
[1748430015933,5.78973968,173.95,173.92,29.06]
[1748430016347,0.04313968,173.95,173.92,29.06]
[1748430016535,5.7471,173.94,173.92,29.06]
[1748430016931,0.04313968,173.95,173.92,29.06]
[1748430017240,0.04313968,173.95,173.91,0.04060403]
[1748430018134,4.27813242,173.93,173.91,0.04060403]
[1748430018835,4.3212721,173.95,173.91,0.04060403]
[1748430020436,0.04313968,173.95,173.91,0.04060403]
[1748430035043,0.04313968,173.95,173.92,4.27813242]
[1748430037442,0.04313968,173.95,173.94,4.27813242]